[Event "Early-Titled-Tuesday-Blitz-September-12-2023"]
[Site "Chess.com"]
[Date "2023.09.12"]
[Round "3"]
[White "Pingah9"]
[Black "Chaos_Magic"]
[Result "1-0"]
[WhiteElo "2565"]
[BlackElo "2375"]
[TimeControl "180+1"]
[EndTime "8:28:25 PDT"]
[Termination "Pingah9 won by checkmate"]

1. e4 {[%clk 0:03:00.9]} 1... e5 {[%clk 0:02:59.4]} 2. Nf3 {[%clk 0:03:00.6]}
2... Nc6 {[%clk 0:02:59.6]} 3. Bb5 {[%clk 0:03:00.3]} 3... a6 {[%clk 0:02:59.7]}
4. Ba4 {[%clk 0:03:00.6]} 4... Nf6 {[%clk 0:02:59.4]} 5. O-O {[%clk 0:03:00.7]}
5... Be7 {[%clk 0:02:56.4]} 6. d3 {[%clk 0:02:59.9]} 6... b5 {[%clk 0:02:51.7]}
7. Bb3 {[%clk 0:02:59.7]} 7... O-O {[%clk 0:02:52]} 8. c3 {[%clk 0:03:00.1]}
8... Bb7 {[%clk 0:02:51.7]} 9. Re1 {[%clk 0:02:59.7]} 9... Re8 {[%clk
0:02:51.3]} 10. Ng5 {[%clk 0:02:42.8]} 10... Rf8 {[%clk 0:02:48.8]} 11. h3
{[%clk 0:02:34.1]} 11... h6 {[%clk 0:02:47.7]} 12. Nf3 {[%clk 0:02:33.8]} 12...
Re8 {[%clk 0:02:47.9]} 13. Nbd2 {[%clk 0:02:32.8]} 13... Bf8 {[%clk 0:02:45.7]}
14. Nf1 {[%clk 0:02:32.4]} 14... d5 {[%clk 0:02:38.4]} 15. Qe2 {[%clk 0:02:31]}
15... g6 {[%clk 0:02:35.8]} 16. Ng3 {[%clk 0:02:30.1]} 16... Bg7 {[%clk
0:02:34.9]} 17. a4 {[%clk 0:02:26.2]} 17... Qd7 {[%clk 0:02:32.3]} 18. axb5
{[%clk 0:02:22.9]} 18... axb5 {[%clk 0:02:32.5]} 19. Rxa8 {[%clk 0:02:22.9]}
19... Bxa8 {[%clk 0:02:32.7]} 20. Be3 {[%clk 0:02:19.5]} 20... b4 {[%clk
0:02:29.6]} 21. Bc5 {[%clk 0:02:13.1]} 21... bxc3 {[%clk 0:02:29.3]} 22. bxc3
{[%clk 0:02:12]} 22... dxe4 {[%clk 0:02:17.1]} 23. Nxe4 {[%clk 0:02:07.6]} 23...
Nxe4 {[%clk 0:02:15.4]} 24. dxe4 {[%clk 0:02:08.5]} 24... Na5 {[%clk 0:02:04.1]}
25. Ba2 {[%clk 0:01:56.1]} 25... Qc6 {[%clk 0:02:02.5]} 26. Bb4 {[%clk
0:01:51.1]} 26... Nb7 {[%clk 0:01:36.5]} 27. Ra1 {[%clk 0:01:45.1]} 27... Qd7
{[%clk 0:00:59.3]} 28. Bd5 {[%clk 0:01:39.2]} 28... c6 {[%clk 0:00:59.1]} 29.
Ba2 {[%clk 0:01:23.9]} 29... c5 {[%clk 0:00:53.2]} 30. Ba3 {[%clk 0:01:23.6]}
30... Qc7 {[%clk 0:00:53.3]} 31. Qa6 {[%clk 0:01:11.1]} 31... Nd6 {[%clk
0:00:50.5]} 32. Nd2 {[%clk 0:00:46.7]} 32... Nxe4 {[%clk 0:00:45]} 33. Nxe4
{[%clk 0:00:23.2]} 33... Bxe4 {[%clk 0:00:45.1]} 34. Re1 {[%clk 0:00:23.7]}
34... Bf5 {[%clk 0:00:41.3]} 35. Qb5 {[%clk 0:00:20.3]} 35... Rc8 {[%clk
0:00:40]} 36. Bc4 {[%clk 0:00:19.8]} 36... e4 {[%clk 0:00:34.3]} 37. Qb3 {[%clk
0:00:18.4]} 37... Re8 {[%clk 0:00:25.8]} 38. Bd5 {[%clk 0:00:15.9]} 38... Qe5
{[%clk 0:00:19.2]} 39. Bxf7+ {[%clk 0:00:14.3]} 39... Kh7 {[%clk 0:00:19.6]} 40.
Bxe8 {[%clk 0:00:14.7]} 40... Qxe8 {[%clk 0:00:20.3]} 41. Bxc5 {[%clk
0:00:14.5]} 41... Qc6 {[%clk 0:00:17.1]} 42. Bd4 {[%clk 0:00:13.9]} 42... Bxd4
{[%clk 0:00:13.9]} 43. cxd4 {[%clk 0:00:14.8]} 43... h5 {[%clk 0:00:14.3]} 44.
Qe3 {[%clk 0:00:14.7]} 44... Qc2 {[%clk 0:00:13.6]} 45. Rc1 {[%clk 0:00:14.7]}
45... Qb2 {[%clk 0:00:13.2]} 46. Rc7+ {[%clk 0:00:14.9]} 46... Kg8 {[%clk
0:00:13.3]} 47. Qh6 {[%clk 0:00:09.6]} 47... Qxd4 {[%clk 0:00:07.9]} 48. Qh7+
{[%clk 0:00:09.5]} 48... Kf8 {[%clk 0:00:08.4]} 49. Qf7# {[%clk 0:00:10.2]} 1-0

[Event "Early-Titled-Tuesday-Blitz-September-12-2023"]
[Site "Chess.com"]
[Date "2023.09.12"]
[Round "3"]
[White "Barmen_EV"]
[Black "DarZay"]
[Result "1-0"]
[WhiteElo "2463"]
[BlackElo "2262"]
[TimeControl "180+1"]
[EndTime "8:28:25 PDT"]
[Termination "Barmen_EV won on time"]

1. e4 {[%clk 0:03:00.9]} 1... c5 {[%clk 0:02:58.1]} 2. c3 {[%clk 0:02:52.5]}
2... Nf6 {[%clk 0:02:53.7]} 3. e5 {[%clk 0:02:52.4]} 3... Nd5 {[%clk 0:02:53.7]}
4. d4 {[%clk 0:02:53.3]} 4... cxd4 {[%clk 0:02:53.2]} 5. Nf3 {[%clk 0:02:54.2]}
5... d6 {[%clk 0:02:48.8]} 6. Bc4 {[%clk 0:02:53]} 6... e6 {[%clk 0:02:47.8]} 7.
Bxd5 {[%clk 0:02:51.7]} 7... exd5 {[%clk 0:02:46.4]} 8. cxd4 {[%clk 0:02:52.4]}
8... dxe5 {[%clk 0:02:46.2]} 9. Nxe5 {[%clk 0:02:52.9]} 9... Bb4+ {[%clk
0:02:42.8]} 10. Nc3 {[%clk 0:02:52.4]} 10... O-O {[%clk 0:02:39.9]} 11. O-O
{[%clk 0:02:51.1]} 11... Nc6 {[%clk 0:02:39.5]} 12. Re1 {[%clk 0:02:46]} 12...
Be6 {[%clk 0:02:27.7]} 13. Nxc6 {[%clk 0:02:26.6]} 13... bxc6 {[%clk 0:02:26.5]}
14. Bf4 {[%clk 0:02:26.3]} 14... Bd6 {[%clk 0:02:21.8]} 15. Qf3 {[%clk
0:02:24.9]} 15... Qc7 {[%clk 0:02:20.3]} 16. Bxd6 {[%clk 0:02:16.4]} 16... Qxd6
{[%clk 0:02:20.2]} 17. Na4 {[%clk 0:02:16.7]} 17... Qb4 {[%clk 0:02:18.5]} 18.
Nc5 {[%clk 0:02:02.3]} 18... Qxd4 {[%clk 0:02:18.2]} 19. Rac1 {[%clk 0:01:52.8]}
19... Qxb2 {[%clk 0:02:15]} 20. Qg3 {[%clk 0:01:46.7]} 20... Rae8 {[%clk
0:02:03.5]} 21. h4 {[%clk 0:01:41.4]} 21... Bf5 {[%clk 0:02:00.4]} 22. h5 {[%clk
0:01:21.2]} 22... h6 {[%clk 0:01:45.9]} 23. Qf4 {[%clk 0:01:14]} 23... Bh7
{[%clk 0:01:40.1]} 24. Nd7 {[%clk 0:01:11.4]} 24... Rxe1+ {[%clk 0:01:35.6]} 25.
Rxe1 {[%clk 0:01:12.3]} 25... Rc8 {[%clk 0:01:13.2]} 26. Qc7 {[%clk 0:00:48.8]}
26... Ra8 {[%clk 0:00:48.2]} 27. Ne5 {[%clk 0:00:42]} 27... Be4 {[%clk
0:00:35.3]} 28. Qxf7+ {[%clk 0:00:40.4]} 28... Kh7 {[%clk 0:00:32.8]} 29. Ng4
{[%clk 0:00:29.6]} 29... Qc3 {[%clk 0:00:23.2]} 30. Re3 {[%clk 0:00:27.6]} 30...
Qa1+ {[%clk 0:00:16.5]} 31. Kh2 {[%clk 0:00:27.5]} 31... Qd4 {[%clk 0:00:13.5]}
32. Rg3 {[%clk 0:00:25.3]} 32... Rg8 {[%clk 0:00:09.6]} 33. Nxh6 {[%clk
0:00:22.9]} 33... Kxh6 {[%clk 0:00:08.9]} 34. Qxg8 {[%clk 0:00:17]} 34... Qe5
{[%clk 0:00:06.2]} 35. Qh8+ {[%clk 0:00:14.9]} 35... Bh7 {[%clk 0:00:05.1]} 36.
Qc8 {[%clk 0:00:09.8]} 36... d4 {[%clk 0:00:04.4]} 37. Qxc6+ {[%clk 0:00:10.1]}
37... Qf6 {[%clk 0:00:04.2]} 38. Qxf6+ {[%clk 0:00:10.2]} 38... gxf6 {[%clk
0:00:04.8]} 39. Rg4 {[%clk 0:00:08.5]} 39... d3 {[%clk 0:00:04.9]} 40. Rd4
{[%clk 0:00:09.2]} 40... Kxh5 {[%clk 0:00:04.4]} 41. Kg3 {[%clk 0:00:09.6]}
41... Kg5 {[%clk 0:00:04.4]} 42. Rd5+ {[%clk 0:00:09.7]} 42... Bf5 {[%clk
0:00:03.5]} 43. f4+ {[%clk 0:00:09.7]} 43... Kg6 {[%clk 0:00:03.9]} 44. Kf3
{[%clk 0:00:09.7]} 44... a5 {[%clk 0:00:03.2]} 45. g4 {[%clk 0:00:10]} 1-0

[Event "Early-Titled-Tuesday-Blitz-September-12-2023"]
[Site "Chess.com"]
[Date "2023.09.12"]
[Round "3"]
[White "Quattroporte300"]
[Black "AleksandraMilovic"]
[Result "1-0"]
[WhiteElo "2393"]
[BlackElo "2115"]
[TimeControl "180+1"]
[EndTime "8:28:26 PDT"]
[Termination "Quattroporte300 won on time"]

1. e4 {[%clk 0:03:00.9]} 1... c5 {[%clk 0:02:57.5]} 2. Nf3 {[%clk 0:03:01]} 2...
e6 {[%clk 0:02:56.9]} 3. g3 {[%clk 0:03:00.7]} 3... g6 {[%clk 0:02:54.6]} 4. Bg2
{[%clk 0:03:01]} 4... Bg7 {[%clk 0:02:54.6]} 5. O-O {[%clk 0:02:59.3]} 5... Ne7
{[%clk 0:02:53.7]} 6. c3 {[%clk 0:02:59]} 6... O-O {[%clk 0:02:51.4]} 7. d4
{[%clk 0:02:59.3]} 7... cxd4 {[%clk 0:02:51.4]} 8. cxd4 {[%clk 0:02:59.1]} 8...
d5 {[%clk 0:02:51.5]} 9. e5 {[%clk 0:02:58.1]} 9... Nbc6 {[%clk 0:02:51.5]} 10.
Nc3 {[%clk 0:02:58.4]} 10... a6 {[%clk 0:02:51.1]} 11. Bf4 {[%clk 0:02:44.9]}
11... b5 {[%clk 0:02:38.8]} 12. Qd2 {[%clk 0:02:44.8]} 12... Qb6 {[%clk
0:02:37.9]} 13. Rfd1 {[%clk 0:02:39.8]} 13... Bd7 {[%clk 0:02:29.9]} 14. Rac1
{[%clk 0:02:38.8]} 14... a5 {[%clk 0:02:29.8]} 15. Bh6 {[%clk 0:02:33.7]} 15...
a4 {[%clk 0:02:10.2]} 16. Qg5 {[%clk 0:02:25.9]} 16... b4 {[%clk 0:01:49]} 17.
Ne2 {[%clk 0:02:24.8]} 17... Nf5 {[%clk 0:01:45.7]} 18. Bxg7 {[%clk 0:02:21.7]}
18... Nxg7 {[%clk 0:01:43]} 19. h4 {[%clk 0:02:15.2]} 19... Qd8 {[%clk
0:01:29.3]} 20. Qf4 {[%clk 0:02:02.8]} 20... Qe7 {[%clk 0:01:17.2]} 21. g4
{[%clk 0:02:00]} 21... h5 {[%clk 0:01:08.4]} 22. g5 {[%clk 0:01:55.1]} 22... Nf5
{[%clk 0:01:06.4]} 23. Bh3 {[%clk 0:01:42.2]} 23... b3 {[%clk 0:00:48.5]} 24. a3
{[%clk 0:01:39.2]} 24... Na5 {[%clk 0:00:39.5]} 25. Bxf5 {[%clk 0:01:34.1]}
25... exf5 {[%clk 0:00:39.6]} 26. Rc5 {[%clk 0:01:24.8]} 26... Nc4 {[%clk
0:00:35.3]} 27. Nc3 {[%clk 0:00:34.8]} 27... Be6 {[%clk 0:00:25.9]} 28. Rb1
{[%clk 0:00:21.7]} 28... Rfd8 {[%clk 0:00:24.5]} 29. Nd2 {[%clk 0:00:20.2]}
29... Nb6 {[%clk 0:00:18]} 30. Qe3 {[%clk 0:00:15.5]} 30... Rdc8 {[%clk
0:00:14.7]} 31. Rc1 {[%clk 0:00:11.9]} 31... Rxc5 {[%clk 0:00:13.8]} 32. dxc5
{[%clk 0:00:11.9]} 32... Nd7 {[%clk 0:00:10.7]} 33. Nb5 {[%clk 0:00:12]} 33...
Rc8 {[%clk 0:00:07.1]} 34. Nd6 {[%clk 0:00:12.3]} 34... Rc6 {[%clk 0:00:06.4]}
35. f4 {[%clk 0:00:11.4]} 35... Nb8 {[%clk 0:00:05.3]} 36. Nf3 {[%clk
0:00:11.8]} 36... Qc7 {[%clk 0:00:05.4]} 37. Nd4 {[%clk 0:00:12.4]} 37... Rxc5
{[%clk 0:00:05.5]} 38. Rd1 {[%clk 0:00:09]} 38... Rc2 {[%clk 0:00:03.3]} 39.
Nxc2 {[%clk 0:00:08.8]} 39... Qxc2 {[%clk 0:00:03.3]} 40. Qd2 {[%clk 0:00:08.7]}
40... Qc5+ {[%clk 0:00:03.2]} 41. Kg2 {[%clk 0:00:07.5]} 41... Nc6 {[%clk
0:00:02.7]} 42. Rc1 {[%clk 0:00:07]} 42... Qb6 {[%clk 0:00:02.3]} 43. Qc3 {[%clk
0:00:06.6]} 43... Nd4 {[%clk 0:00:01.9]} 44. Qc5 {[%clk 0:00:05.1]} 1-0

[Event "Early-Titled-Tuesday-Blitz-September-12-2023"]
[Site "Chess.com"]
[Date "2023.09.12"]
[Round "3"]
[White "MaxLeto"]
[Black "OchsenfroschGambit"]
[Result "1-0"]
[WhiteElo "2380"]
[BlackElo "2073"]
[TimeControl "180+1"]
[EndTime "8:28:27 PDT"]
[Termination "MaxLeto won on time"]

1. g4 {[%clk 0:03:00.9]} 1... d5 {[%clk 0:02:58.2]} 2. Bg2 {[%clk 0:03:01]} 2...
Nc6 {[%clk 0:02:57.3]} 3. h3 {[%clk 0:02:59.5]} 3... e5 {[%clk 0:02:55.9]} 4. d3
{[%clk 0:02:59.7]} 4... Nge7 {[%clk 0:02:48.7]} 5. Nc3 {[%clk 0:02:59.9]} 5...
d4 {[%clk 0:02:47.9]} 6. Ne4 {[%clk 0:02:59.9]} 6... Ng6 {[%clk 0:02:48]} 7. Ng3
{[%clk 0:02:56.5]} 7... Nh4 {[%clk 0:02:44.6]} 8. Be4 {[%clk 0:02:56.6]} 8... g6
{[%clk 0:02:38.2]} 9. Nf3 {[%clk 0:02:46.1]} 9... Ng2+ {[%clk 0:02:34.8]} 10.
Kf1 {[%clk 0:02:45.7]} 10... Nf4 {[%clk 0:02:35.7]} 11. e3 {[%clk 0:02:43.8]}
11... dxe3 {[%clk 0:01:54.9]} 12. fxe3 {[%clk 0:02:44.7]} 12... Ne6 {[%clk
0:01:52.2]} 13. Kg2 {[%clk 0:02:30.3]} 13... Be7 {[%clk 0:01:47.6]} 14. Bd2
{[%clk 0:02:22.4]} 14... O-O {[%clk 0:01:30.8]} 15. Bc3 {[%clk 0:02:19]} 15...
f6 {[%clk 0:01:17]} 16. h4 {[%clk 0:02:19.1]} 16... Kh8 {[%clk 0:01:15.7]} 17.
h5 {[%clk 0:02:19.4]} 17... g5 {[%clk 0:01:14.8]} 18. Qe2 {[%clk 0:02:07.9]}
18... Nc5 {[%clk 0:01:14.7]} 19. Bf5 {[%clk 0:02:03.6]} 19... Bd6 {[%clk
0:00:58.5]} 20. Raf1 {[%clk 0:02:02.9]} 20... Ne7 {[%clk 0:00:57.9]} 21. Bxc8
{[%clk 0:01:31.9]} 21... Rxc8 {[%clk 0:00:57.4]} 22. Nd2 {[%clk 0:01:28.2]}
22... Qd7 {[%clk 0:00:55.6]} 23. e4 {[%clk 0:01:26.2]} 23... Ne6 {[%clk
0:00:53.6]} 24. Qf3 {[%clk 0:01:17.7]} 24... Nf4+ {[%clk 0:00:52.3]} 25. Kh2
{[%clk 0:01:15.7]} 25... Bc5 {[%clk 0:00:35]} 26. Nc4 {[%clk 0:01:10.9]} 26...
b5 {[%clk 0:00:33.9]} 27. Na5 {[%clk 0:01:03.8]} 27... Bd4 {[%clk 0:00:26.7]}
28. Nb3 {[%clk 0:00:48.5]} 28... c5 {[%clk 0:00:23.8]} 29. Nf5 {[%clk
0:00:44.5]} 29... Nxf5 {[%clk 0:00:22.2]} 30. exf5 {[%clk 0:00:45.4]} 30... Bxc3
{[%clk 0:00:18.7]} 31. bxc3 {[%clk 0:00:45.6]} 31... c4 {[%clk 0:00:19.3]} 32.
dxc4 {[%clk 0:00:41.3]} 32... bxc4 {[%clk 0:00:20.2]} 33. Rd1 {[%clk 0:00:40.3]}
33... Qc7 {[%clk 0:00:19.1]} 34. Nd2 {[%clk 0:00:40.3]} 34... Rfd8 {[%clk
0:00:17.5]} 35. Ne4 {[%clk 0:00:40.7]} 35... Qb6 {[%clk 0:00:17.6]} 36. Rb1
{[%clk 0:00:36.9]} 36... Qa6 {[%clk 0:00:14.8]} 37. Rb2 {[%clk 0:00:36.6]} 37...
Kg7 {[%clk 0:00:12.8]} 38. Rhb1 {[%clk 0:00:37.2]} 38... Rc7 {[%clk 0:00:09.5]}
39. Qf2 {[%clk 0:00:31]} 39... Qc6 {[%clk 0:00:08.6]} 40. Qf3 {[%clk 0:00:26]}
40... Rcd7 {[%clk 0:00:07.6]} 41. Kg3 {[%clk 0:00:23.3]} 41... h6 {[%clk
0:00:07.1]} 42. a4 {[%clk 0:00:22.5]} 42... Rd3 {[%clk 0:00:06.7]} 43. cxd3
{[%clk 0:00:19.8]} 43... Rxd3 {[%clk 0:00:07.6]} 44. Rb7+ {[%clk 0:00:19.9]}
44... Kf8 {[%clk 0:00:05.8]} 45. Rb8+ {[%clk 0:00:20.1]} 45... Ke7 {[%clk
0:00:06.2]} 46. R1b7+ {[%clk 0:00:20.7]} 46... Rd7 {[%clk 0:00:05.6]} 47. Rxd7+
{[%clk 0:00:20.5]} 47... Kxd7 {[%clk 0:00:05.3]} 48. Qe3 {[%clk 0:00:11]} 1-0

[Event "Early-Titled-Tuesday-Blitz-September-12-2023"]
[Site "Chess.com"]
[Date "2023.09.12"]
[Round "3"]
[White "mmDarko"]
[Black "GeorgiosSouleidis"]
[Result "1/2-1/2"]
[WhiteElo "2211"]
[BlackElo "2532"]
[TimeControl "180+1"]
[EndTime "8:28:28 PDT"]
[Termination "Game drawn by repetition"]

1. d4 {[%clk 0:03:00.9]} 1... Nf6 {[%clk 0:02:59.8]} 2. Nf3 {[%clk 0:03:01]}
2... g6 {[%clk 0:03:00]} 3. g3 {[%clk 0:03:01.2]} 3... Bg7 {[%clk 0:02:59.8]} 4.
Bg2 {[%clk 0:03:01.3]} 4... O-O {[%clk 0:03:00.4]} 5. O-O {[%clk 0:03:02.2]}
5... d6 {[%clk 0:02:59.2]} 6. c4 {[%clk 0:03:03.1]} 6... Nc6 {[%clk 0:02:59.2]}
7. Nc3 {[%clk 0:03:03.9]} 7... e5 {[%clk 0:02:59.5]} 8. d5 {[%clk 0:03:04.1]}
8... Nb8 {[%clk 0:02:59.3]} 9. e4 {[%clk 0:03:04.3]} 9... a5 {[%clk 0:02:59.7]}
10. Ne1 {[%clk 0:03:04.2]} 10... Na6 {[%clk 0:03:00.1]} 11. Nd3 {[%clk
0:03:04.3]} 11... b6 {[%clk 0:03:00.7]} 12. h3 {[%clk 0:03:03.4]} 12... Nc5
{[%clk 0:03:00.8]} 13. Nxc5 {[%clk 0:03:03.1]} 13... bxc5 {[%clk 0:03:00.8]} 14.
Be3 {[%clk 0:03:00.6]} 14... Ne8 {[%clk 0:02:57.7]} 15. Qd2 {[%clk 0:02:56]}
15... f5 {[%clk 0:02:57.6]} 16. f4 {[%clk 0:02:49.5]} 16... exf4 {[%clk
0:02:49.6]} 17. Bxf4 {[%clk 0:02:49.1]} 17... Rb8 {[%clk 0:02:15.5]} 18. b3
{[%clk 0:02:46.8]} 18... fxe4 {[%clk 0:01:46.1]} 19. Rae1 {[%clk 0:02:45.9]}
19... Nf6 {[%clk 0:01:39]} 20. Bg5 {[%clk 0:02:36.5]} 20... Qd7 {[%clk
0:01:20.7]} 21. Nxe4 {[%clk 0:02:16.8]} 21... Nxe4 {[%clk 0:01:20.9]} 22. Rxe4
{[%clk 0:02:16.6]} 22... Rxf1+ {[%clk 0:01:19.7]} 23. Bxf1 {[%clk 0:02:02.9]}
23... Be5 {[%clk 0:00:44.7]} 24. Bf4 {[%clk 0:01:52.2]} 24... Qf5 {[%clk
0:00:32.4]} 25. Qe2 {[%clk 0:01:34.4]} 25... Bd4+ {[%clk 0:00:23.8]} 26. Kh2
{[%clk 0:01:29.3]} 26... Bd7 {[%clk 0:00:23.8]} 27. Re7 {[%clk 0:01:19.1]} 27...
Rf8 {[%clk 0:00:23.7]} 28. Bg2 {[%clk 0:01:11.7]} 28... Rf7 {[%clk 0:00:12.9]}
29. Bh6 {[%clk 0:01:03.7]} 29... Rxe7 {[%clk 0:00:10.1]} 30. Qxe7 {[%clk
0:01:03.4]} 30... Qf7 {[%clk 0:00:09.5]} 31. Qxf7+ {[%clk 0:00:54.1]} 31... Kxf7
{[%clk 0:00:10.4]} 32. h4 {[%clk 0:00:47.7]} 32... a4 {[%clk 0:00:10.3]} 33. Bh3
{[%clk 0:00:46]} 33... Be8 {[%clk 0:00:06.8]} 34. Be6+ {[%clk 0:00:43.7]} 34...
Ke7 {[%clk 0:00:06]} 35. Bg5+ {[%clk 0:00:42.9]} 35... Bf6 {[%clk 0:00:06.2]}
36. Bf4 {[%clk 0:00:38.3]} 36... axb3 {[%clk 0:00:06.1]} 37. axb3 {[%clk
0:00:38.3]} 37... h5 {[%clk 0:00:06.6]} 38. Kg2 {[%clk 0:00:37.5]} 38... Bf7
{[%clk 0:00:05.1]} 39. Bxf7 {[%clk 0:00:35.7]} 39... Kxf7 {[%clk 0:00:06]} 40.
Kf3 {[%clk 0:00:35.7]} 40... Bc3 {[%clk 0:00:05.9]} 41. Bg5 {[%clk 0:00:31.4]}
41... Bf6 {[%clk 0:00:06.2]} 42. Bxf6 {[%clk 0:00:23.8]} 42... Kxf6 {[%clk
0:00:06.6]} 43. Kf4 {[%clk 0:00:23.4]} 43... Kf7 {[%clk 0:00:07.1]} 44. g4
{[%clk 0:00:20.8]} 44... hxg4 {[%clk 0:00:07]} 45. Kxg4 {[%clk 0:00:21.1]} 45...
Kf6 {[%clk 0:00:05.7]} 46. Kf4 {[%clk 0:00:21.3]} 46... Kf7 {[%clk 0:00:06.2]}
47. Kg4 {[%clk 0:00:19.1]} 47... Kf6 {[%clk 0:00:05.4]} 48. Kf4 {[%clk
0:00:19.4]} 48... Kf7 {[%clk 0:00:05.9]} 49. Kg5 {[%clk 0:00:19.9]} 49... Kg7
{[%clk 0:00:06.1]} 50. Kg4 {[%clk 0:00:19.4]} 50... Kf6 {[%clk 0:00:05.7]}
1/2-1/2

[Event "Early-Titled-Tuesday-Blitz-September-12-2023"]
[Site "Chess.com"]
[Date "2023.09.12"]
[Round "3"]
[White "Witik"]
[Black "LevonAronian"]
[Result "0-1"]
[WhiteElo "2746"]
[BlackElo "3038"]
[TimeControl "180+1"]
[EndTime "8:28:31 PDT"]
[Termination "LevonAronian won by resignation"]

1. d4 {[%clk 0:02:59.8]} 1... Nf6 {[%clk 0:02:59.7]} 2. Bf4 {[%clk 0:02:59.8]}
2... c5 {[%clk 0:02:57.3]} 3. e3 {[%clk 0:03:00.2]} 3... g6 {[%clk 0:02:52.1]}
4. Nf3 {[%clk 0:02:57.7]} 4... cxd4 {[%clk 0:02:46.9]} 5. exd4 {[%clk
0:02:57.4]} 5... Bg7 {[%clk 0:02:47.5]} 6. Nbd2 {[%clk 0:02:54.2]} 6... O-O
{[%clk 0:02:47.5]} 7. h3 {[%clk 0:02:54.2]} 7... Nc6 {[%clk 0:02:47.6]} 8. c3
{[%clk 0:02:52.2]} 8... d6 {[%clk 0:02:47.6]} 9. Be2 {[%clk 0:02:52]} 9... Nd5
{[%clk 0:02:47.4]} 10. Bh2 {[%clk 0:02:49.7]} 10... e5 {[%clk 0:02:47.8]} 11.
dxe5 {[%clk 0:02:48.4]} 11... dxe5 {[%clk 0:02:47.8]} 12. O-O {[%clk 0:02:46.5]}
12... Bf5 {[%clk 0:02:45.5]} 13. Nc4 {[%clk 0:02:41.8]} 13... e4 {[%clk
0:02:42.4]} 14. Nfe5 {[%clk 0:02:36.3]} 14... Nxe5 {[%clk 0:02:34.5]} 15. Nxe5
{[%clk 0:02:36.3]} 15... Nb6 {[%clk 0:02:24.7]} 16. Ng4 {[%clk 0:02:26.8]} 16...
Be6 {[%clk 0:02:15.1]} 17. Qc2 {[%clk 0:02:10.5]} 17... f5 {[%clk 0:02:12.3]}
18. Rfd1 {[%clk 0:02:09.1]} 18... Qg5 {[%clk 0:02:05.2]} 19. Ne5 {[%clk
0:01:42.9]} 19... f4 {[%clk 0:01:53.1]} 20. Qxe4 {[%clk 0:01:42]} 20... Qxe5
{[%clk 0:01:47.2]} 21. Qxe5 {[%clk 0:01:36.8]} 21... Bxe5 {[%clk 0:01:46.1]} 22.
Bf3 {[%clk 0:01:37.7]} 22... Rae8 {[%clk 0:01:27.5]} 23. Bxb7 {[%clk 0:01:36.7]}
23... g5 {[%clk 0:01:15.1]} 24. a4 {[%clk 0:01:33.7]} 24... Bb3 {[%clk
0:01:09.4]} 25. Re1 {[%clk 0:01:33]} 25... Bf6 {[%clk 0:01:04.2]} 26. Rxe8
{[%clk 0:01:29.2]} 26... Rxe8 {[%clk 0:01:03.5]} 27. a5 {[%clk 0:01:30.1]} 27...
Nc4 {[%clk 0:01:03.5]} 28. Bd5+ {[%clk 0:01:20.8]} 28... Kg7 {[%clk 0:01:03.5]}
29. g3 {[%clk 0:01:13.1]} 29... Rd8 {[%clk 0:01:01.9]} 30. Bxc4 {[%clk
0:01:10.4]} 30... Bxc4 {[%clk 0:01:02]} 31. gxf4 {[%clk 0:01:11.3]} 31... Rd2
{[%clk 0:01:01.6]} 32. fxg5 {[%clk 0:01:06.1]} 32... Bxg5 {[%clk 0:01:01.5]} 33.
Be5+ {[%clk 0:00:55.8]} 33... Bf6 {[%clk 0:01:01.5]} 34. Bxf6+ {[%clk
0:00:47.8]} 34... Kxf6 {[%clk 0:01:01.9]} 35. Ra4 {[%clk 0:00:43.8]} 35... Bb3
{[%clk 0:00:53.2]} 36. Rb4 {[%clk 0:00:40.7]} 36... Rxb2 {[%clk 0:00:53.5]} 37.
Rb7 {[%clk 0:00:40.5]} 37... h5 {[%clk 0:00:42.6]} 38. h4 {[%clk 0:00:24.9]}
38... a6 {[%clk 0:00:34.1]} 39. Rb6+ {[%clk 0:00:20.2]} 39... Kf5 {[%clk
0:00:34.1]} 40. Rxa6 {[%clk 0:00:20.6]} 40... Bd5 {[%clk 0:00:33.1]} 41. Rb6
{[%clk 0:00:17.6]} 41... Rxb6 {[%clk 0:00:18.4]} 42. axb6 {[%clk 0:00:17.7]}
42... Kg4 {[%clk 0:00:18.9]} 43. c4 {[%clk 0:00:17.4]} 43... Bc6 {[%clk
0:00:18.9]} 44. c5 {[%clk 0:00:14.3]} 44... Kxh4 {[%clk 0:00:18.9]} 45. Kh2
{[%clk 0:00:04.9]} 45... Kg4 {[%clk 0:00:19.2]} 46. Kg1 {[%clk 0:00:05]} 46...
Kh3 {[%clk 0:00:19.3]} 47. f4 {[%clk 0:00:04.3]} 47... Kg4 {[%clk 0:00:19.1]}
48. Kh2 {[%clk 0:00:04.3]} 48... Kxf4 {[%clk 0:00:19.3]} 49. Kh3 {[%clk
0:00:05.1]} 49... Kg5 {[%clk 0:00:19.8]} 50. Kg3 {[%clk 0:00:05.6]} 50... h4+
{[%clk 0:00:20.2]} 51. Kh3 {[%clk 0:00:06.1]} 51... Kh5 {[%clk 0:00:20.7]} 52.
Kh2 {[%clk 0:00:06.4]} 52... Kg4 {[%clk 0:00:21.2]} 53. b7 {[%clk 0:00:05.2]}
53... Bxb7 {[%clk 0:00:21]} 54. Kg1 {[%clk 0:00:04.9]} 54... Kg3 {[%clk
0:00:21]} 0-1